[Event "Early-Titled-Tuesday-Blitz-April-23-2024"]
[Site "Chess.com"]
[Date "2024.04.23"]
[Round "8"]
[White "sokidze"]
[Black "Evan_Attaker"]
[Result "1-0"]
[WhiteElo "2804"]
[BlackElo "2582"]
[TimeControl "180+1"]
[EndTime "9:32:20 PDT"]
[Termination "sokidze won by checkmate"]

1. d4 {[%clk 0:03:00.9]} 1... c5 {[%clk 0:02:59.5]} 2. d5 {[%clk 0:02:59.2]}
2... d6 {[%clk 0:02:59.8]} 3. e4 {[%clk 0:02:59.1]} 3... g6 {[%clk 0:03:00.3]}
4. h3 {[%clk 0:02:54]} 4... Bg7 {[%clk 0:03:00.1]} 5. Nf3 {[%clk 0:02:54.2]}
5... Nf6 {[%clk 0:02:59.9]} 6. Nc3 {[%clk 0:02:53.5]} 6... O-O {[%clk
0:02:59.1]} 7. Bd3 {[%clk 0:02:50.9]} 7... Na6 {[%clk 0:02:59]} 8. a3 {[%clk
0:02:49]} 8... Nc7 {[%clk 0:02:59]} 9. a4 {[%clk 0:02:46]} 9... a6 {[%clk
0:02:54.6]} 10. O-O {[%clk 0:02:45.8]} 10... Bd7 {[%clk 0:02:54.2]} 11. a5
{[%clk 0:02:32]} 11... Nb5 {[%clk 0:02:54.2]} 12. Re1 {[%clk 0:02:31.1]} 12...
Rc8 {[%clk 0:02:46.3]} 13. Bd2 {[%clk 0:02:25.8]} 13... c4 {[%clk 0:02:44.2]}
14. Bf1 {[%clk 0:02:25]} 14... e6 {[%clk 0:02:26.4]} 15. dxe6 {[%clk 0:02:15.8]}
15... Bxe6 {[%clk 0:02:27.3]} 16. Nxb5 {[%clk 0:02:14.9]} 16... axb5 {[%clk
0:02:28.2]} 17. Bb4 {[%clk 0:02:15.3]} 17... Re8 {[%clk 0:01:17.3]} 18. Qxd6
{[%clk 0:01:29.5]} 18... Nh5 {[%clk 0:01:07]} 19. c3 {[%clk 0:01:24.7]} 19...
Qf6 {[%clk 0:00:59.3]} 20. Nd4 {[%clk 0:01:10.4]} 20... Qg5 {[%clk 0:00:54.4]}
21. Nf3 {[%clk 0:01:05.6]} 21... Qf6 {[%clk 0:00:52.8]} 22. e5 {[%clk
0:00:59.5]} 22... Qf4 {[%clk 0:00:49.1]} 23. Qd4 {[%clk 0:00:56.2]} 23... Red8
{[%clk 0:00:41]} 24. Bd6 {[%clk 0:00:55.1]} 24... Qh6 {[%clk 0:00:36]} 25. Qh4
{[%clk 0:00:47.5]} 25... Bf8 {[%clk 0:00:32.3]} 26. Bxf8 {[%clk 0:00:44.6]}
26... Qxf8 {[%clk 0:00:33.2]} 27. Nd4 {[%clk 0:00:40.9]} 27... Rd5 {[%clk
0:00:27.2]} 28. a6 {[%clk 0:00:37.9]} 28... bxa6 {[%clk 0:00:27]} 29. Rxa6
{[%clk 0:00:37.6]} 29... Ng7 {[%clk 0:00:27.9]} 30. Qf6 {[%clk 0:00:34.7]} 30...
b4 {[%clk 0:00:27.6]} 31. Rea1 {[%clk 0:00:32.4]} 31... bxc3 {[%clk 0:00:27.4]}
32. bxc3 {[%clk 0:00:32.6]} 32... Rcd8 {[%clk 0:00:26.9]} 33. Nxe6 {[%clk
0:00:23.2]} 33... fxe6 {[%clk 0:00:25.2]} 34. Bxc4 {[%clk 0:00:21.4]} 34... Rc5
{[%clk 0:00:22.5]} 35. Bxe6+ {[%clk 0:00:18.1]} 35... Nxe6 {[%clk 0:00:21.8]}
36. Qxe6+ {[%clk 0:00:18.2]} 36... Qf7 {[%clk 0:00:22.2]} 37. Qxf7+ {[%clk
0:00:16.4]} 37... Kxf7 {[%clk 0:00:23.1]} 38. Ra7+ {[%clk 0:00:17]} 38... Kg8
{[%clk 0:00:23.4]} 39. Re7 {[%clk 0:00:12.9]} 39... Rxc3 {[%clk 0:00:21.2]} 40.
Raa7 {[%clk 0:00:13.5]} 40... Rc5 {[%clk 0:00:18.2]} 41. Rg7+ {[%clk 0:00:13.3]}
41... Kf8 {[%clk 0:00:18.9]} 42. Rxh7 {[%clk 0:00:14]} 42... Kg8 {[%clk
0:00:19.6]} 43. Rag7+ {[%clk 0:00:14.2]} 43... Kf8 {[%clk 0:00:20.2]} 44. e6
{[%clk 0:00:14.9]} 44... Rd1+ {[%clk 0:00:18.8]} 45. Kh2 {[%clk 0:00:15.5]}
45... Re1 {[%clk 0:00:17.6]} 46. e7+ {[%clk 0:00:16]} 46... Ke8 {[%clk
0:00:18.2]} 47. Rg8+ {[%clk 0:00:16.5]} 47... Kd7 {[%clk 0:00:18.9]} 48. e8=Q+
{[%clk 0:00:17.1]} 48... Kd6 {[%clk 0:00:19.3]} 49. Rxg6+ {[%clk 0:00:13.4]}
49... Re6 {[%clk 0:00:17.1]} 50. Qxe6# {[%clk 0:00:13.1]} 1-0

[Event "Early-Titled-Tuesday-Blitz-April-23-2024"]
[Site "Chess.com"]
[Date "2024.04.23"]
[Round "8"]
[White "KnightDuta"]
[Black "AlexanderKing"]
[Result "1-0"]
[WhiteElo "2753"]
[BlackElo "2578"]
[TimeControl "180+1"]
[EndTime "9:32:21 PDT"]
[Termination "KnightDuta won on time"]

1. e4 {[%clk 0:03:00.9]} 1... e6 {[%clk 0:02:59.3]} 2. d4 {[%clk 0:03:00.8]}
2... d5 {[%clk 0:02:59.7]} 3. Nc3 {[%clk 0:02:59.8]} 3... Bb4 {[%clk 0:02:59.9]}
4. e5 {[%clk 0:02:59.7]} 4... c5 {[%clk 0:03:00.5]} 5. a3 {[%clk 0:02:59.9]}
5... Bxc3+ {[%clk 0:03:00.9]} 6. bxc3 {[%clk 0:03:00.8]} 6... Qa5 {[%clk
0:03:01.6]} 7. Bd2 {[%clk 0:03:00.5]} 7... Qa4 {[%clk 0:03:02]} 8. Nf3 {[%clk
0:02:55.9]} 8... b6 {[%clk 0:02:57.1]} 9. h4 {[%clk 0:02:51.3]} 9... Ne7 {[%clk
0:02:45.3]} 10. h5 {[%clk 0:02:50.4]} 10... h6 {[%clk 0:02:44.8]} 11. Rh4 {[%clk
0:02:33.1]} 11... cxd4 {[%clk 0:02:31.5]} 12. Nxd4 {[%clk 0:02:20.9]} 12... Qd7
{[%clk 0:01:59.5]} 13. Qg4 {[%clk 0:01:42]} 13... Kf8 {[%clk 0:01:59.1]} 14. Qg3
{[%clk 0:01:24.6]} 14... Nbc6 {[%clk 0:01:53.6]} 15. Bd3 {[%clk 0:01:23.4]}
15... Nxd4 {[%clk 0:01:32.2]} 16. cxd4 {[%clk 0:01:24.1]} 16... Nf5 {[%clk
0:01:20.1]} 17. Bxf5 {[%clk 0:01:06.4]} 17... exf5 {[%clk 0:01:21]} 18. a4
{[%clk 0:01:00.4]} 18... Kg8 {[%clk 0:01:08.4]} 19. Qf4 {[%clk 0:00:50.7]} 19...
Kh7 {[%clk 0:00:48.5]} 20. Rh3 {[%clk 0:00:51.1]} 20... Qe6 {[%clk 0:00:44.4]}
21. a5 {[%clk 0:00:30.3]} 21... Bd7 {[%clk 0:00:40.2]} 22. Rha3 {[%clk
0:00:26.1]} 22... b5 {[%clk 0:00:39.7]} 23. Bb4 {[%clk 0:00:25.5]} 23... Rac8
{[%clk 0:00:31.1]} 24. Bc5 {[%clk 0:00:25.4]} 24... a6 {[%clk 0:00:31.4]} 25.
Rg3 {[%clk 0:00:21.5]} 25... Rhe8 {[%clk 0:00:18.3]} 26. Kd2 {[%clk 0:00:21.8]}
26... f6 {[%clk 0:00:02.6]} 27. Re1 {[%clk 0:00:21.8]} 27... fxe5 {[%clk
0:00:02.4]} 28. Rxe5 {[%clk 0:00:22.7]} 28... Qf7 {[%clk 0:00:01.9]} 29. Bd6
{[%clk 0:00:19.5]} 29... Rxe5 {[%clk 0:00:01.7]} 30. Bxe5 {[%clk 0:00:20.4]}
30... Rg8 {[%clk 0:00:01.3]} 31. Rg6 {[%clk 0:00:20.9]} 31... Be8 {[%clk
0:00:01.6]} 32. Rxa6 {[%clk 0:00:16.5]} 32... Qxh5 {[%clk 0:00:01.6]} 33. Rd6
{[%clk 0:00:16.5]} 33... Qf7 {[%clk 0:00:01.4]} 34. a6 {[%clk 0:00:16.7]} 34...
b4 {[%clk 0:00:01.7]} 35. Rb6 {[%clk 0:00:16.1]} 35... b3 {[%clk 0:00:01.4]} 36.
cxb3 {[%clk 0:00:15.8]} 36... Qa7 {[%clk 0:00:02]} 37. Bc7 {[%clk 0:00:15.2]}
37... Bh5 {[%clk 0:00:01.8]} 38. Qxf5+ {[%clk 0:00:15.4]} 38... Kh8 {[%clk
0:00:02.1]} 39. Qd7 {[%clk 0:00:12.4]} 39... Be8 {[%clk 0:00:01.8]} 40. Rxh6+
{[%clk 0:00:12.7]} 40... gxh6 {[%clk 0:00:01.1]} 41. Be5+ {[%clk 0:00:13.6]} 1-0

[Event "Early-Titled-Tuesday-Blitz-April-23-2024"]
[Site "Chess.com"]
[Date "2024.04.23"]
[Round "8"]
[White "nicolochessit"]
[Black "oggy1984"]
[Result "0-1"]
[WhiteElo "2273"]
[BlackElo "2368"]
[TimeControl "180+1"]
[EndTime "9:32:21 PDT"]
[Termination "oggy1984 won by checkmate"]

1. e4 {[%clk 0:02:52]} 1... c5 {[%clk 0:02:59.3]} 2. Nf3 {[%clk 0:02:49]} 2...
Nc6 {[%clk 0:02:59.5]} 3. Bb5 {[%clk 0:02:48.4]} 3... e6 {[%clk 0:02:57.6]} 4.
O-O {[%clk 0:02:47.1]} 4... Nge7 {[%clk 0:02:57.2]} 5. Re1 {[%clk 0:02:45.7]}
5... a6 {[%clk 0:02:57.4]} 6. Bf1 {[%clk 0:02:45.3]} 6... d6 {[%clk 0:02:37.4]}
7. c3 {[%clk 0:02:44.9]} 7... e5 {[%clk 0:02:34.3]} 8. d4 {[%clk 0:02:43.9]}
8... Ng6 {[%clk 0:02:29.8]} 9. Be3 {[%clk 0:02:43.3]} 9... b6 {[%clk 0:02:13.2]}
10. a4 {[%clk 0:02:42]} 10... Be7 {[%clk 0:02:11.5]} 11. Na3 {[%clk 0:02:40.2]}
11... O-O {[%clk 0:02:10.2]} 12. Rb1 {[%clk 0:02:38.6]} 12... Bg4 {[%clk
0:02:05.2]} 13. d5 {[%clk 0:02:32.3]} 13... Nb8 {[%clk 0:02:03.7]} 14. b4 {[%clk
0:02:31.7]} 14... Nd7 {[%clk 0:01:58.3]} 15. Nc4 {[%clk 0:02:28.6]} 15... b5
{[%clk 0:01:52.1]} 16. Na3 {[%clk 0:02:20.2]} 16... cxb4 {[%clk 0:01:42.9]} 17.
cxb4 {[%clk 0:02:18.9]} 17... bxa4 {[%clk 0:01:34.7]} 18. Be2 {[%clk 0:02:15.5]}
18... Nb6 {[%clk 0:01:26.1]} 19. Bxb6 {[%clk 0:02:03.4]} 19... Qxb6 {[%clk
0:01:25.4]} 20. Qxa4 {[%clk 0:02:04]} 20... Nf4 {[%clk 0:01:19.3]} 21. Nc4
{[%clk 0:01:59.1]} 21... Qd8 {[%clk 0:00:59.2]} 22. h3 {[%clk 0:01:47.2]} 22...
Bd7 {[%clk 0:00:50.8]} 23. Qa2 {[%clk 0:01:43.1]} 23... Bb5 {[%clk 0:00:50.2]}
24. Bf1 {[%clk 0:01:31.8]} 24... Bg5 {[%clk 0:00:41.8]} 25. Ne3 {[%clk
0:01:27.7]} 25... g6 {[%clk 0:00:39.7]} 26. g3 {[%clk 0:00:54.8]} 26... Nh5
{[%clk 0:00:34.6]} 27. Nc4 {[%clk 0:00:43.7]} 27... Bh6 {[%clk 0:00:24]} 28. Na5
{[%clk 0:00:27.2]} 28... f5 {[%clk 0:00:22.8]} 29. exf5 {[%clk 0:00:22.1]} 29...
gxf5 {[%clk 0:00:22.6]} 30. Nc6 {[%clk 0:00:22.1]} 30... Qf6 {[%clk 0:00:21.7]}
31. Nfxe5 {[%clk 0:00:15.7]} 31... dxe5 {[%clk 0:00:19.7]} 32. Nxe5 {[%clk
0:00:16.6]} 32... Kh8 {[%clk 0:00:18]} 33. Rbc1 {[%clk 0:00:12.2]} 33... Bxc1
{[%clk 0:00:17]} 34. Rxc1 {[%clk 0:00:12.1]} 34... Qxe5 {[%clk 0:00:16.5]} 35.
Qd2 {[%clk 0:00:10.4]} 35... Nxg3 {[%clk 0:00:13]} 36. Bxb5 {[%clk 0:00:08.6]}
36... axb5 {[%clk 0:00:11.5]} 37. d6 {[%clk 0:00:07.7]} 37... Ne2+ {[%clk
0:00:10.3]} 38. Kf1 {[%clk 0:00:07.5]} 38... Nxc1 {[%clk 0:00:10.3]} 39. Qxc1
{[%clk 0:00:08.4]} 39... Ra1 {[%clk 0:00:09.9]} 40. Qxa1 {[%clk 0:00:07.7]}
40... Qxa1+ {[%clk 0:00:09.5]} 41. Kg2 {[%clk 0:00:08.6]} 41... Qd4 {[%clk
0:00:09.6]} 42. d7 {[%clk 0:00:07.9]} 42... Qxd7 {[%clk 0:00:09.5]} 43. h4
{[%clk 0:00:08]} 43... Qd5+ {[%clk 0:00:09.8]} 44. Kh3 {[%clk 0:00:07.8]} 44...
Rg8 {[%clk 0:00:09.7]} 45. h5 {[%clk 0:00:08.3]} 45... Qh1# {[%clk 0:00:08.9]}
0-1

[Event "Early-Titled-Tuesday-Blitz-April-23-2024"]
[Site "Chess.com"]
[Date "2024.04.23"]
[Round "8"]
[White "SpeedofLight0"]
[Black "Prizant_academy"]
[Result "1-0"]
[WhiteElo "3086"]
[BlackElo "2940"]
[TimeControl "180+1"]
[EndTime "9:32:22 PDT"]
[Termination "SpeedofLight0 won by resignation"]

1. d4 {[%clk 0:03:00.9]} 1... d5 {[%clk 0:02:57.8]} 2. Nc3 {[%clk 0:03:00.8]}
2... Nf6 {[%clk 0:02:57.8]} 3. Bf4 {[%clk 0:03:01]} 3... c5 {[%clk 0:02:58.5]}
4. e3 {[%clk 0:03:01.4]} 4... cxd4 {[%clk 0:02:59.2]} 5. exd4 {[%clk 0:03:02.3]}
5... a6 {[%clk 0:02:59.5]} 6. Nf3 {[%clk 0:03:02.7]} 6... Nc6 {[%clk 0:03:00.1]}
7. Ne5 {[%clk 0:03:03.2]} 7... Bd7 {[%clk 0:03:00.7]} 8. Ne2 {[%clk 0:03:02.9]}
8... e6 {[%clk 0:02:43.9]} 9. c3 {[%clk 0:03:03]} 9... Nxe5 {[%clk 0:02:08.9]}
10. Bxe5 {[%clk 0:03:01.2]} 10... Bb5 {[%clk 0:02:01.9]} 11. a4 {[%clk 0:02:58]}
11... Bc4 {[%clk 0:02:00.9]} 12. Nc1 {[%clk 0:02:53.4]} 12... Bxf1 {[%clk
0:01:59.1]} 13. Kxf1 {[%clk 0:02:54.3]} 13... Bd6 {[%clk 0:01:59.3]} 14. Nd3
{[%clk 0:02:47.1]} 14... O-O {[%clk 0:01:47.2]} 15. h4 {[%clk 0:02:45.4]} 15...
Bxe5 {[%clk 0:01:43.7]} 16. Nxe5 {[%clk 0:02:45.4]} 16... Ne4 {[%clk 0:01:39.4]}
17. g3 {[%clk 0:02:39.2]} 17... Qf6 {[%clk 0:01:35.5]} 18. Nf3 {[%clk
0:02:33.6]} 18... b5 {[%clk 0:01:30.7]} 19. Kg2 {[%clk 0:02:30.7]} 19... Rab8
{[%clk 0:01:29.6]} 20. Qe2 {[%clk 0:02:17.2]} 20... Rfc8 {[%clk 0:00:58.8]} 21.
Ne5 {[%clk 0:02:17.1]} 21... Qe7 {[%clk 0:00:58.8]} 22. Nd3 {[%clk 0:02:17.1]}
22... h6 {[%clk 0:00:52.8]} 23. axb5 {[%clk 0:01:36.4]} 23... axb5 {[%clk
0:00:52.7]} 24. Ra6 {[%clk 0:01:34.5]} 24... Ra8 {[%clk 0:00:47.4]} 25. Rha1
{[%clk 0:01:31.9]} 25... Qb7 {[%clk 0:00:39.1]} 26. Nb4 {[%clk 0:01:29.3]} 26...
Rxa6 {[%clk 0:00:36.1]} 27. Rxa6 {[%clk 0:01:28.6]} 27... e5 {[%clk 0:00:25.1]}
28. f3 {[%clk 0:01:11.3]} 28... exd4 {[%clk 0:00:03.9]} 29. fxe4 {[%clk
0:01:05.3]} 29... dxe4 {[%clk 0:00:03.7]} 30. Rd6 {[%clk 0:00:35.4]} 30... e3+
{[%clk 0:00:03.2]} 31. Qf3 {[%clk 0:00:30.4]} 31... Qxf3+ {[%clk 0:00:03.3]} 32.
Kxf3 {[%clk 0:00:31.3]} 32... dxc3 {[%clk 0:00:04.2]} 33. bxc3 {[%clk
0:00:28.6]} 33... Rxc3 {[%clk 0:00:05.1]} 34. Nd5 {[%clk 0:00:27.9]} 34... Rb3
{[%clk 0:00:03.5]} 35. Nxe3 {[%clk 0:00:26.8]} 35... b4 {[%clk 0:00:03.4]} 36.
Rb6 {[%clk 0:00:26.9]} 36... Rb1 {[%clk 0:00:04]} 37. Nc4 {[%clk 0:00:23.6]}
37... b3 {[%clk 0:00:03.8]} 38. Nd2 {[%clk 0:00:23.9]} 38... Rd1 {[%clk
0:00:02.7]} 39. Nxb3 {[%clk 0:00:24.3]} 39... Rd7 {[%clk 0:00:02.7]} 40. Nc5
{[%clk 0:00:23.1]} 40... Rc7 {[%clk 0:00:03]} 41. Ne4 {[%clk 0:00:23.2]} 41...
Kh7 {[%clk 0:00:02.8]} 42. h5 {[%clk 0:00:20.7]} 42... g6 {[%clk 0:00:02.4]} 43.
Nf6+ {[%clk 0:00:15.6]} 43... Kh8 {[%clk 0:00:02.2]} 44. Rb8+ {[%clk 0:00:15.8]}
44... Kg7 {[%clk 0:00:02.8]} 45. Ne8+ {[%clk 0:00:16.3]} 1-0

[Event "Early-Titled-Tuesday-Blitz-April-23-2024"]
[Site "Chess.com"]
[Date "2024.04.23"]
[Round "8"]
[White "grzechu96"]
[Black "rasmussvane"]
[Result "0-1"]
[WhiteElo "2790"]
[BlackElo "2962"]
[TimeControl "180+1"]
[EndTime "9:32:24 PDT"]
[Termination "rasmussvane won on time"]

1. e4 {[%clk 0:03:00.9]} 1... c6 {[%clk 0:02:58.7]} 2. d4 {[%clk 0:03:01]} 2...
d5 {[%clk 0:02:59.6]} 3. e5 {[%clk 0:03:01.6]} 3... Bf5 {[%clk 0:02:58.9]} 4.
Nf3 {[%clk 0:03:01.9]} 4... e6 {[%clk 0:02:58.9]} 5. Be2 {[%clk 0:03:02.5]} 5...
Ne7 {[%clk 0:02:55.9]} 6. O-O {[%clk 0:03:02.4]} 6... Nd7 {[%clk 0:02:52.3]} 7.
Nh4 {[%clk 0:03:02.3]} 7... Bg6 {[%clk 0:02:44.7]} 8. Nd2 {[%clk 0:03:02.1]}
8... Nf5 {[%clk 0:02:41.5]} 9. Nxg6 {[%clk 0:03:02.1]} 9... hxg6 {[%clk
0:02:42.4]} 10. Nf3 {[%clk 0:03:02.5]} 10... a6 {[%clk 0:02:40.2]} 11. g3 {[%clk
0:03:00.9]} 11... Be7 {[%clk 0:02:34.8]} 12. h4 {[%clk 0:02:59]} 12... c5 {[%clk
0:02:31.2]} 13. c3 {[%clk 0:02:59.4]} 13... Rc8 {[%clk 0:02:30.4]} 14. Kg2
{[%clk 0:02:55.8]} 14... Qb6 {[%clk 0:02:26.6]} 15. Rb1 {[%clk 0:02:54.2]} 15...
cxd4 {[%clk 0:02:23]} 16. cxd4 {[%clk 0:02:55.1]} 16... Nb8 {[%clk 0:02:23]} 17.
Bd2 {[%clk 0:02:37.2]} 17... Nc6 {[%clk 0:02:18.1]} 18. Bc3 {[%clk 0:02:37.5]}
18... f6 {[%clk 0:01:48.3]} 19. exf6 {[%clk 0:01:49]} 19... Bxf6 {[%clk
0:01:43.4]} 20. Bd3 {[%clk 0:01:48.8]} 20... Nfxd4 {[%clk 0:01:15.4]} 21. Bxg6+
{[%clk 0:01:47.6]} 21... Kd7 {[%clk 0:01:14.9]} 22. Nh2 {[%clk 0:01:05.6]} 22...
Nb5 {[%clk 0:01:07.4]} 23. Ng4 {[%clk 0:01:05.2]} 23... Bxc3 {[%clk 0:00:42.8]}
24. bxc3 {[%clk 0:01:06.1]} 24... Qc5 {[%clk 0:00:43.5]} 25. a4 {[%clk
0:00:43.3]} 25... Nd6 {[%clk 0:00:43.2]} 26. Qd2 {[%clk 0:00:34.6]} 26... Qc4
{[%clk 0:00:35.2]} 27. Ne3 {[%clk 0:00:32.4]} 27... Qc5 {[%clk 0:00:27.8]} 28.
Ng4 {[%clk 0:00:15.6]} 28... Rcf8 {[%clk 0:00:23.6]} 29. Rfe1 {[%clk 0:00:12.6]}
29... Qc4 {[%clk 0:00:20.2]} 30. Ne3 {[%clk 0:00:11.7]} 30... Qc5 {[%clk
0:00:20.7]} 31. Re2 {[%clk 0:00:10.4]} 31... Ne5 {[%clk 0:00:18.9]} 32. Bd3
{[%clk 0:00:06.7]} 32... Kc7 {[%clk 0:00:16.4]} 33. Qc2 {[%clk 0:00:05.7]} 33...
Qc6 {[%clk 0:00:13.6]} 34. Kh2 {[%clk 0:00:02.8]} 34... Nf3+ {[%clk 0:00:13.7]}
35. Kh3 {[%clk 0:00:02.6]} 35... g5 {[%clk 0:00:11.6]} 36. Ng2 {[%clk
0:00:02.2]} 36... gxh4 {[%clk 0:00:11.5]} 37. gxh4 {[%clk 0:00:02.9]} 37... e5
{[%clk 0:00:11.5]} 38. Bg6 {[%clk 0:00:03.3]} 38... Qd7+ {[%clk 0:00:10.3]} 39.
Kg3 {[%clk 0:00:03.5]} 39... e4 {[%clk 0:00:10.8]} 40. c4 {[%clk 0:00:02.7]}
40... Rfg8 {[%clk 0:00:11]} 41. cxd5+ {[%clk 0:00:02.8]} 41... Kb8 {[%clk
0:00:11]} 42. Nf4 {[%clk 0:00:02.8]} 42... Qf5 {[%clk 0:00:10.1]} 43. Qc5 {[%clk
0:00:02.5]} 43... Rxg6+ {[%clk 0:00:09.5]} 44. Nxg6 {[%clk 0:00:03.1]} 44...
Qxg6+ {[%clk 0:00:10.4]} 45. Kf4 {[%clk 0:00:03.6]} 45... Qh6+ {[%clk
0:00:09.3]} 0-1

[Event "Early-Titled-Tuesday-Blitz-April-23-2024"]
[Site "Chess.com"]
[Date "2024.04.23"]
[Round "8"]
[White "PonyQueen07"]
[Black "Fjal"]
[Result "1-0"]
[WhiteElo "2221"]
[BlackElo "2324"]
[TimeControl "180+1"]
[EndTime "9:32:25 PDT"]
[Termination "PonyQueen07 won by resignation"]

1. c4 {[%clk 0:03:00.9]} 1... e5 {[%clk 0:02:57.8]} 2. Nc3 {[%clk 0:02:59.7]}
2... g6 {[%clk 0:02:57.3]} 3. g3 {[%clk 0:02:57.9]} 3... Bg7 {[%clk 0:02:58]} 4.
Bg2 {[%clk 0:02:58.2]} 4... Ne7 {[%clk 0:02:58]} 5. e4 {[%clk 0:02:57.1]} 5...
O-O {[%clk 0:02:57.4]} 6. Nge2 {[%clk 0:02:57.7]} 6... d6 {[%clk 0:02:57.9]} 7.
O-O {[%clk 0:02:57.9]} 7... c6 {[%clk 0:02:58.6]} 8. d3 {[%clk 0:02:58.3]} 8...
a6 {[%clk 0:02:59.2]} 9. Be3 {[%clk 0:02:55.4]} 9... b5 {[%clk 0:02:58.1]} 10.
b3 {[%clk 0:02:49.6]} 10... Nd7 {[%clk 0:02:55]} 11. Rc1 {[%clk 0:02:45.8]}
11... Nc5 {[%clk 0:02:55.2]} 12. b4 {[%clk 0:02:37]} 12... Ne6 {[%clk
0:02:53.3]} 13. c5 {[%clk 0:02:31.1]} 13... dxc5 {[%clk 0:02:53.2]} 14. bxc5
{[%clk 0:02:27.9]} 14... a5 {[%clk 0:02:51]} 15. Qc2 {[%clk 0:02:23.3]} 15...
Nd4 {[%clk 0:02:49]} 16. Qd2 {[%clk 0:02:10.7]} 16... a4 {[%clk 0:02:45.5]} 17.
f4 {[%clk 0:02:02.4]} 17... exf4 {[%clk 0:02:45.6]} 18. Nxf4 {[%clk 0:01:53.2]}
18... b4 {[%clk 0:02:42.2]} 19. Nce2 {[%clk 0:01:46.9]} 19... b3 {[%clk
0:02:42.2]} 20. Nxd4 {[%clk 0:01:41.3]} 20... Bxd4 {[%clk 0:02:41.5]} 21. axb3
{[%clk 0:01:37.4]} 21... axb3 {[%clk 0:02:38.9]} 22. Kh1 {[%clk 0:01:32.2]}
22... Ba6 {[%clk 0:02:31.7]} 23. Bxd4 {[%clk 0:01:26.3]} 23... Qxd4 {[%clk
0:02:32.6]} 24. Rfd1 {[%clk 0:01:04.1]} 24... Rfd8 {[%clk 0:02:25.3]} 25. Rc3
{[%clk 0:00:45.9]} 25... Rab8 {[%clk 0:02:22.2]} 26. Ne2 {[%clk 0:00:35.3]}
26... Qb4 {[%clk 0:02:06.8]} 27. Qb2 {[%clk 0:00:17.1]} 27... h5 {[%clk
0:02:02.5]} 28. h4 {[%clk 0:00:15.6]} 28... Kh7 {[%clk 0:01:48.4]} 29. Nf4
{[%clk 0:00:13.9]} 29... Ng8 {[%clk 0:01:46.5]} 30. Rb1 {[%clk 0:00:08.7]} 30...
Nf6 {[%clk 0:01:04.7]} 31. Rxb3 {[%clk 0:00:08.7]} 31... Qxb3 {[%clk 0:01:05.3]}
32. Qxb3 {[%clk 0:00:08.9]} 32... Rxb3 {[%clk 0:01:06.2]} 33. Rxb3 {[%clk
0:00:08.6]} 33... Ng4 {[%clk 0:01:07.1]} 34. Bf3 {[%clk 0:00:04.9]} 34... Nf2+
{[%clk 0:01:04.7]} 35. Kg2 {[%clk 0:00:05.5]} 35... Nxd3 {[%clk 0:01:05]} 36.
Nxd3 {[%clk 0:00:06.2]} 36... Bxd3 {[%clk 0:01:01.1]} 37. Rb7 {[%clk 0:00:06.4]}
37... Kg7 {[%clk 0:01:00.5]} 38. e5 {[%clk 0:00:06.5]} 38... Bb5 {[%clk
0:00:55.5]} 39. e6 {[%clk 0:00:04.5]} 39... Rf8 {[%clk 0:00:51.9]} 40. e7 {[%clk
0:00:04]} 40... Re8 {[%clk 0:00:51.9]} 41. Kf2 {[%clk 0:00:03.3]} 41... Kf6
{[%clk 0:00:52.3]} 42. Rb6 {[%clk 0:00:02.7]} 42... Rxe7 {[%clk 0:00:50]} 43.
Bxc6 {[%clk 0:00:03.3]} 43... Bxc6 {[%clk 0:00:43.6]} 44. Rxc6+ {[%clk
0:00:03.6]} 44... Re6 {[%clk 0:00:44.5]} 45. Rxe6+ {[%clk 0:00:02.7]} 45... Kxe6
{[%clk 0:00:45.4]} 46. Kf3 {[%clk 0:00:03.3]} 46... Kd5 {[%clk 0:00:46]} 47. Kf4
{[%clk 0:00:03.8]} 47... Kxc5 {[%clk 0:00:46.7]} 48. Ke5 {[%clk 0:00:04.4]}
48... Kc4 {[%clk 0:00:21.6]} 49. Kf6 {[%clk 0:00:04.9]} 49... Kd3 {[%clk
0:00:20.7]} 50. Kxf7 {[%clk 0:00:05.6]} 50... Ke3 {[%clk 0:00:18.4]} 51. Kxg6
{[%clk 0:00:06.2]} 51... Kf3 {[%clk 0:00:19.3]} 52. Kxh5 {[%clk 0:00:06.6]}
52... Kxg3 {[%clk 0:00:20.2]} 53. Kg5 {[%clk 0:00:07.1]} 1-0

[Event "Early-Titled-Tuesday-Blitz-April-23-2024"]
[Site "Chess.com"]
[Date "2024.04.23"]
[Round "8"]
[White "maurovargas01"]
[Black "C_K_G"]
[Result "0-1"]
[WhiteElo "1883"]
[BlackElo "2297"]
[TimeControl "180+1"]
[EndTime "9:32:25 PDT"]
[Termination "C_K_G won on time"]

1. e4 {[%clk 0:02:59.2]} 1... c5 {[%clk 0:03:00.4]} 2. Nc3 {[%clk 0:02:58.2]}
2... d6 {[%clk 0:03:00.9]} 3. f4 {[%clk 0:02:59.1]} 3... e6 {[%clk 0:03:01.1]}
4. Nf3 {[%clk 0:03:00]} 4... a6 {[%clk 0:03:01.3]} 5. d3 {[%clk 0:02:58.9]} 5...
Be7 {[%clk 0:03:01.8]} 6. g4 {[%clk 0:02:58.9]} 6... b5 {[%clk 0:03:01.4]} 7. h4
{[%clk 0:02:54.7]} 7... Bb7 {[%clk 0:03:01.4]} 8. Bg2 {[%clk 0:02:54.2]} 8... b4
{[%clk 0:02:59.1]} 9. Ne2 {[%clk 0:02:47.2]} 9... Nc6 {[%clk 0:02:59.5]} 10. O-O
{[%clk 0:02:45.7]} 10... h5 {[%clk 0:02:57.8]} 11. g5 {[%clk 0:02:45.5]} 11...
g6 {[%clk 0:02:50.7]} 12. b3 {[%clk 0:02:35.4]} 12... e5 {[%clk 0:02:42.5]} 13.
fxe5 {[%clk 0:02:29.9]} 13... dxe5 {[%clk 0:02:43.3]} 14. Bb2 {[%clk 0:02:29.7]}
14... Nd4 {[%clk 0:02:41.2]} 15. Nxe5 {[%clk 0:02:16.5]} 15... Rh7 {[%clk
0:02:32]} 16. Bh3 {[%clk 0:01:57.9]} 16... Bxg5 {[%clk 0:02:09.4]} 17. Bd7+
{[%clk 0:01:45.3]} 17... Kf8 {[%clk 0:01:49.9]} 18. Nxd4 {[%clk 0:01:40.1]}
18... Be3+ {[%clk 0:01:46.8]} 19. Kg2 {[%clk 0:01:33.7]} 19... cxd4 {[%clk
0:01:45.1]} 20. Nxg6+ {[%clk 0:01:26.4]} 20... Kg7 {[%clk 0:01:39.8]} 21. Ne5
{[%clk 0:01:17.7]} 21... Qxh4 {[%clk 0:01:36.8]} 22. Qf3 {[%clk 0:01:11.9]}
22... f6 {[%clk 0:01:08.9]} 23. Nc4 {[%clk 0:00:51.3]} 23... Rh6 {[%clk
0:00:57.8]} 24. Bf5 {[%clk 0:00:48.3]} 24... Ne7 {[%clk 0:00:42.8]} 25. Nxe3
{[%clk 0:00:47.5]} 25... dxe3 {[%clk 0:00:42.5]} 26. Qxe3 {[%clk 0:00:47.2]}
26... Nxf5 {[%clk 0:00:37.7]} 27. Rxf5 {[%clk 0:00:42.6]} 27... Rg6+ {[%clk
0:00:35.8]} 28. Kf3 {[%clk 0:00:38.6]} 28... Rg3+ {[%clk 0:00:29.5]} 29. Ke2
{[%clk 0:00:35.3]} 29... Rxe3+ {[%clk 0:00:28.1]} 30. Kxe3 {[%clk 0:00:34.3]}
30... Qg4 {[%clk 0:00:25]} 31. Bxf6+ {[%clk 0:00:27.6]} 31... Kh7 {[%clk
0:00:24.1]} 32. Raf1 {[%clk 0:00:25.8]} 32... Rg8 {[%clk 0:00:22.2]} 33. Be5
{[%clk 0:00:13.6]} 33... Bc8 {[%clk 0:00:12.9]} 34. Rf7+ {[%clk 0:00:13.1]}
34... Kg6 {[%clk 0:00:11.8]} 35. R1f6+ {[%clk 0:00:07]} 35... Kg5 {[%clk
0:00:12]} 36. Bf4+ {[%clk 0:00:04.6]} 36... Kh4 {[%clk 0:00:12.3]} 37. Bd6
{[%clk 0:00:01.8]} 37... Qg1+ {[%clk 0:00:12.4]} 0-1